[Event "Turkish Super League 2019"]
[Site "Konya"]
[Date "2019.07.23"]
[Round "7"]
[White "Annaberdiev, Meilis"]
[Black "Mchedlishvili, Mikheil"]
[Result "1/2-1/2"]
[ECO "A25"]
[WhiteElo "2515"]
[BlackElo "2571"]
[Annotator "ChessBase"]
[PlyCount "83"]
[EventDate "2019.07.17"]
[EventType "team-tourn"]
[EventCountry "TUR"]
[SourceTitle "playchess.com"]
[Source "ChessBase"]
[SourceQuality "1"]
[TimeControl "40/5400+30:1800+30"]

1. c4 e5 2. g3 Nc6 3. Bg2 f5 4. Nc3 Nf6 5. e3 d5 6. cxd5 Nb4 7. d3 c6 8. a3 Nbxd5 9. Nge2 Be6 10. O-O Bd6 11. e4 fxe4 12. Nxe4 Nxe4 13. dxe4 Nf6 14. Qc2 Qe7 15. Kh1 O-O 16. f3 Nd7 17. Be3 Bc5 18. Bd2 a5 19. Rae1 a4 20. f4 Nf6 21. h3 Bb3 22. Qc1 Rad8 23. fxe5 Qxe5 24. Rf5 Qe7 25. Bg5 Bb6 26. e5 Qd7 27. g4 Nd5 28. Bxd8 Rxd8 29. Nf4 Nxf4 30. Qxf4 Be6 31. Rf1 Bxf5 32. gxf5 Qd4 {[%emt 1:29:57]} 33. Qg3 {[%emt 1:44:38]} Qe3 {[%emt 0:00:30]} 34. Bf3 {[%emt 0:00:30]} Qd3 {[%emt 0:00:30]} 35. Qg2 {[%emt 0:01:11]} Kh8 {[%emt 0:05:48]} 36. e6 {[%emt 0:00:30]} Bc5 {[%emt 0:04:29]} 37. Be4 {[%emt 0:00:07]} Qd2 {[%emt 0:01:07]} 38. Qxd2 {[%emt 0:00:51]} Rxd2 {[%emt 0:00:30]} 39. Rc1 {[%emt 0:00:00]} Be7 {[%emt 0:00:51]} 40. Rc4 {[%emt 0:00:00]} g6 {[%emt 0:00:00]} 41. fxg6 {[%emt 0:08:43]} hxg6 {[%emt 0:01:48]} 42. Bxg6 {[%emt 0:05:27]} 1/2-1/2

[Event "Turkish Super League 2019"]
[Site "Konya"]
[Date "2019.07.23"]
[Round "7"]
[White "Asadli, Vugar"]
[Black "Gadimbayli, Abdulla"]
[Result "1/2-1/2"]
[ECO "C29"]
[WhiteElo "2502"]
[BlackElo "2414"]
[Annotator "ChessBase"]
[PlyCount "60"]
[EventDate "2019.07.17"]
[EventType "team-tourn"]
[EventCountry "TUR"]
[SourceTitle "playchess.com"]
[Source "ChessBase"]
[SourceQuality "1"]
[TimeControl "40/5400+30:1800+30"]

1. e4 e5 2. Nc3 Nf6 3. f4 d5 4. fxe5 Nxe4 5. Qf3 Nc6 6. Bb5 Bc5 7. Nxe4 dxe4 8. Qxe4 O-O 9. Bxc6 bxc6 10. Nf3 Be6 {[%emt 0:51:00]} 11. c3 {[%emt 0:47:30]} Bd5 {[%emt 0:00:30]} 12. Qe2 {[%emt 0:00:30]} Bb6 {[%emt 0:00:30]} 13. d4 {[%emt 0:01:30]} c5 {[%emt 0:05:30]} 14. dxc5 {[%emt 0:00:00]} Bxc5 {[%emt 0:00:00]} 15. Be3 {[%emt 0:01:00]} Bxe3 {[%emt 0:04:00]} 16. Qxe3 {[%emt 0:00:30]} Bxf3 {[%emt 0:00:30]} 17. Qxf3 {[%emt 0:01:30]} Qg5 {[%emt 0:00:30]} 18. O-O {[%emt 0:04:30]} Qxe5 {[%emt 0:03:30]} 19. Rad1 {[%emt 0:00:30]} Qe6 {[%emt 0:00:30]} 20. b3 {[%emt 0:00:30]} Rad8 {[%emt 0:02:30]} 21. Rfe1 {[%emt 0:00:30]} Rxd1 {[%emt 0:03:30]} 22. Rxd1 {[%emt 0:00:30]} Re8 {[%emt 0:00:30]} 23. h3 {[%emt 0:00:30]} g6 {[%emt 0:01:30]} 24. c4 {[%emt 0:02:30]} a5 {[%emt 0:00:30]} 25. Qd5 {[%emt 0:00:30]} Qe3+ {[%emt 0:00:30]} 26. Kh1 {[%emt 0:00:30]} Qe2 {[%emt 0:00:00]} 27. Qd2 {[%emt 0:00:30]} Qe5 {[%emt 0:00:00]} 28. Qd5 {[%emt 0:00:30]} Qe2 {[%emt 0:00:30]} 29. Qd2 {[%emt 0:00:30]} Qe5 {[%emt 0:00:00]} 30. Qd5 {[%emt 0:00:00]} Qe2 {[%emt 0:00:00]} 1/2-1/2

[Event "Turkish Super League 2019"]
[Site "Konya"]
[Date "2019.07.23"]
[Round "7"]
[White "Benidze, Davit"]
[Black "Abasov, Nijat"]
[Result "1/2-1/2"]
[ECO "A09"]
[WhiteElo "2469"]
[BlackElo "2641"]
[Annotator "ChessBase"]
[PlyCount "43"]
[EventDate "2019.07.17"]
[EventType "team-tourn"]
[EventCountry "TUR"]
[SourceTitle "playchess.com"]
[Source "ChessBase"]
[SourceQuality "1"]
[TimeControl "40/5400+30:1800+30"]

1. Nf3 Nf6 2. g3 c5 3. Bg2 Nc6 4. O-O e5 5. d3 d5 6. c4 d4 7. e3 dxe3 8. Bxe3 Bf5 9. Qb3 Rb8 10. Nc3 Be7 11. Nd5 Nxd5 12. cxd5 Nd4 13. Bxd4 exd4 14. Qa4+ Kf8 15. Qxa7 Bxd3 16. Rfe1 Bd6 {[%emt 0:41:00]} 17. b4 {[%emt 1:01:30]} Ra8 {[%emt 0:14:30]} 18. Qxb7 {[%emt 0:01:30]} Rb8 {[%emt 0:00:30]} 19. Qa7 {[%emt 0:00:30]} Ra8 {[%emt 0:01:30]} 20. Qb7 {[%emt 0:00:00]} Rb8 {[%emt 0:00:30]} 21. Qa7 {[%emt 0:00:00]} Ra8 {[%emt 0:00:00]} 22. Qb7 {[%emt 0:00:30]} 1/2-1/2

[Event "Turkish Super League 2019"]
[Site "Konya"]
[Date "2019.07.23"]
[Round "7"]
[White "Firat, Burak"]
[Black "Samani, Yamac"]
[Result "0-1"]
[ECO "C79"]
[WhiteElo "2463"]
[BlackElo "2266"]
[Annotator "ChessBase"]
[PlyCount "108"]
[EventDate "2019.07.17"]
[EventType "team-tourn"]
[EventCountry "TUR"]
[SourceTitle "playchess.com"]
[Source "ChessBase"]
[SourceQuality "1"]
[TimeControl "40/5400+30:1800+30"]

1. e4 e5 2. Nf3 Nc6 3. Bb5 a6 4. Ba4 d6 5. O-O Bd7 6. c3 g6 7. d4 Bg7 8. Re1 b5 9. Bb3 Nf6 10. h3 O-O 11. a3 Re8 12. Nbd2 a5 13. d5 Nb8 14. a4 b4 15. Nc4 Na6 16. Bc2 bxc3 17. bxc3 Nc5 18. Ba3 Nh5 19. Bxc5 dxc5 20. Bd3 Nf4 21. Bf1 h5 22. Ne3 c6 23. dxc6 Bxc6 24. Bb5 Bxe4 25. Bxe8 Qxe8 26. Nc4 Rd8 27. Nd6 Rxd6 28. Qxd6 Bxf3 29. gxf3 {[%emt 1:35:25]} Qc8 {[%emt 1:37:46]} 30. Rxe5 {[%emt 0:00:30]} Nxh3+ {[%emt 0:00:30]} 31. Kf1 {[%emt 0:00:30]} Nf4 {[%emt 0:00:38]} 32. Re8+ {[%emt 0:06:22]} Qxe8 {[%emt 0:00:30]} 33. Qxf4 {[%emt 0:00:00]} Bxc3 {[%emt 0:00:40]} 34. Rb1 {[%emt 0:00:00]} Kg7 {[%emt 0:01:08]} 35. Rb7 {[%emt 0:01:02]} Qe6 {[%emt 0:00:26]} 36. Kg2 {[%emt 0:01:06]} Bd4 {[%emt 0:00:36]} 37. Ra7 {[%emt 0:02:53]} Qa2 {[%emt 0:00:41]} 38. Kh3 {[%emt 0:00:12]} Qe6+ {[%emt 0:00:55]} 39. Kg2 {[%emt 0:00:02]} Qa2 {[%emt 0:02:08]} 40. Kh3 {[%emt 0:00:00]} Bc3 {[%emt 0:00:00]} 41. Kg2 {[%emt 0:06:28]} Qd5 {[%emt 0:03:32]} 42. Qe4 {[%emt 0:05:30]} Qg5+ {[%emt 0:03:30]} 43. Kf1 {[%emt 0:01:30]} Bd4 {[%emt 0:06:30]} 44. Qe8 {[%emt 0:07:43]} Qd5 {[%emt 0:03:17]} 45. Ra8 {[%emt 0:04:27]} Kf6 {[%emt 0:02:33]} 46. Ra6+ {[%emt 0:03:16]} Kg5 {[%emt 0:01:09]} 47. Qe2 {[%emt 0:00:25]} h4 {[%emt 0:05:49]} 48. Rxa5 {[%emt 0:04:02]} h3 {[%emt 0:00:42]} 49. Ra7 {[%emt 0:00:31]} Kh6 {[%emt 0:01:42]} 50. Qe4 {[%emt 0:01:47]} Qg5 {[%emt 0:02:25]} 51. f4 {[%emt 0:01:08]} Qg4 {[%emt 0:00:30]} 52. Re7 {[%emt 0:00:31]} Qh4 {[%emt 0:01:50]} 53. Kg1 {[%emt 0:00:33]} Qxf2+ {[%emt 0:00:50]} 54. Kh1 {[%emt 0:00:08]} Qg1# {[%emt 0:00:00]} 0-1

[Event "Turkish Super League 2019"]
[Site "Konya"]
[Date "2019.07.23"]
[Round "7"]
[White "Tsolakidou, Stavroula"]
[Black "Atalik, Ekaterina"]
[Result "1-0"]
[ECO "D03"]
[WhiteElo "2423"]
[BlackElo "2459"]
[Annotator "ChessBase"]
[PlyCount "79"]
[EventDate "2019.07.17"]
[EventType "team-tourn"]
[EventCountry "TUR"]
[SourceTitle "playchess.com"]
[Source "ChessBase"]
[SourceQuality "1"]
[TimeControl "40/5400+30:1800+30"]

1. Nf3 Nf6 2. d4 g6 3. Bg5 Ne4 4. Bh4 c5 5. c3 Bg7 6. e3 d5 7. Nbd2 cxd4 8. exd4 Nd6 9. h3 O-O 10. Qb3 Nf5 11. Bg5 Nc6 12. g4 Nh6 13. O-O-O f6 14. Bh4 Nf7 15. Bd3 Qa5 16. g5 fxg5 17. Nxg5 Nxg5 18. Bxg5 Bf5 19. Bxf5 Rxf5 20. Be3 b5 21. a3 Qb6 22. h4 b4 23. axb4 a5 24. bxa5 Qxa5 25. h5 gxh5 26. Rdg1 Kh8 27. Qb7 Rf6 28. Qb3 Rf5 29. Rg5 Rxg5 30. Bxg5 Qa6 31. Qxd5 Qd3 32. Nb3 Qg6 33. Be3 e5 {[%emt 1:28:15]} 34. dxe5 {[%emt 1:44:50]} Rd8 {[%emt 0:00:30]} 35. Qf3 {[%emt 0:00:30]} h4 {[%emt 0:00:30]} 36. Rxh4 {[%emt 0:00:36]} Nxe5 {[%emt 0:05:39]} 37. Qh5 {[%emt 0:00:14]} Qg1+ {[%emt 0:03:43]} 38. Kc2 {[%emt 0:00:03]} h6 {[%emt 0:00:19]} 39. Bxh6 {[%emt 0:01:00]} Kg8 {[%emt 0:01:01]} 40. Bd2 {[%emt 0:00:00]} 1-0

[Event "Turkish Super League 2019"]
[Site "Konya"]
[Date "2019.07.23"]
[Round "7"]
[White "Kerigan, Demre"]
[Black "Quparadze, Giga"]
[Result "1-0"]
[ECO "B43"]
[WhiteElo "2398"]
[BlackElo "2499"]
[Annotator "ChessBase"]
[PlyCount "63"]
[EventDate "2019.07.17"]
[EventType "team-tourn"]
[EventCountry "TUR"]
[SourceTitle "playchess.com"]
[Source "ChessBase"]
[SourceQuality "1"]
[TimeControl "40/5400+30:1800+30"]

1. e4 c5 2. Nf3 e6 3. d4 cxd4 4. Nxd4 a6 5. Nc3 Qc7 6. Qf3 Nf6 7. Bg5 Bb4 8. O-O-O Bxc3 9. bxc3 Qe5 10. Be3 Qxe4 11. Qg3 O-O 12. Bd3 Qg4 13. Qd6 Nc6 14. h3 Qh5 15. Nxc6 dxc6 16. g4 Qa5 17. g5 Nd7 18. h4 Qxc3 19. Bd4 Qa5 20. g6 hxg6 21. Bb2 e5 {[%emt 0:30:30]} 22. h5 {[%emt 1:16:00]} Qc5 {[%emt 0:00:00]} 23. Qc7 {[%emt 0:02:30]} b6 {[%emt 0:02:00]} 24. hxg6 {[%emt 0:02:30]} Rb8 {[%emt 0:07:30]} 25. Rh4 {[%emt 0:04:26]} Re8 {[%emt 0:08:30]} 26. Rdh1 {[%emt 0:03:22]} Kf8 {[%emt 0:00:30]} 27. Rh8+ {[%emt 0:00:38]} Ke7 {[%emt 0:00:00]} 28. Rxe8+ {[%emt 0:00:17]} Kxe8 {[%emt 0:00:00]} 29. Rh8+ {[%emt 0:00:00]} Ke7 {[%emt 0:00:00]} 30. Qd8+ {[%emt 0:00:01]} Ke6 {[%emt 0:00:00]} 31. Re8+ {[%emt 0:00:31]} Kd6 {[%emt 0:00:30]} 32. gxf7 {[%emt 0:00:39]} 1-0

[Event "Turkish Super League 2019"]
[Site "Konya"]
[Date "2019.07.23"]
[Round "7"]
[White "Ertan, Can"]
[Black "Gholami, Aryan"]
[Result "0-1"]
[ECO "B42"]
[WhiteElo "2396"]
[BlackElo "2532"]
[Annotator "ChessBase"]
[PlyCount "80"]
[EventDate "2019.07.17"]
[EventType "team-tourn"]
[EventCountry "TUR"]
[SourceTitle "playchess.com"]
[Source "ChessBase"]
[SourceQuality "1"]
[TimeControl "40/5400+30:1800+30"]

1. e4 c5 2. Nf3 e6 3. d4 cxd4 4. Nxd4 a6 5. Bd3 g6 6. c4 Bg7 7. Nc2 Ne7 8. Nc3 Nbc6 9. O-O O-O 10. Bg5 h6 11. Bh4 g5 12. Bg3 Ne5 13. f4 gxf4 14. Bxf4 N7g6 15. Bg3 d6 16. Be2 Qg5 17. Kh1 h5 18. Qc1 Qe7 19. Qd2 Bd7 20. Rad1 h4 21. Bf2 Rfc8 22. Qxd6 Qxd6 23. Rxd6 Be8 24. Ne3 Nf4 25. Rc1 b5 26. Bf1 bxc4 27. Bxh4 Ned3 28. Rc2 Be5 29. Nxc4 Rxc4 30. Rxd3 Nxd3 31. Bxd3 Rb4 32. Kg1 a5 33. Bg5 Rc8 34. Kf2 {[%emt 1:41:17]} Rd4 {[%emt 1:31:53]} 35. Ba6 {[%emt 0:00:30]} Rc7 {[%emt 0:00:30]} 36. g3 {[%emt 0:02:27]} Bc6 {[%emt 0:06:24]} 37. Be3 {[%emt 0:01:31]} Rb4 {[%emt 0:00:24]} 38. a3 {[%emt 0:00:50]} Rb3 {[%emt 0:01:51]} 39. Bc4 {[%emt 0:00:21]} Rxc3 {[%emt 0:00:29]} 40. bxc3 {[%emt 0:00:00]} Bxe4 {[%emt 0:00:00]} 0-1

[Event "Turkish Super League 2019"]
[Site "Konya"]
[Date "2019.07.23"]
[Round "7"]
[White "Osmak, Iulija"]
[Black "Savina, Anastasia"]
[Result "1/2-1/2"]
[ECO "C41"]
[WhiteElo "2395"]
[BlackElo "2344"]
[Annotator "NA"]
[PlyCount "119"]
[EventDate "2019.07.17"]
[EventType "team-tourn"]
[EventCountry "TUR"]
[SourceTitle "playchess.com"]
[Source "ChessBase"]
[SourceQuality "1"]
[TimeControl "40/5400+30:1800+30"]

1. d4 d6 2. e4 Nf6 3. Nc3 e5 4. Nf3 Nbd7 5. Bc4 Be7 6. a4 O-O 7. O-O a5 8. h3 b6 9. Re1 Bb7 10. Bg5 h6 11. Bxf6 Bxf6 12. Nd5 Re8 13. c3 c6 14. Nxf6+ Nxf6 15. dxe5 dxe5 16. Nh4 Qxd1 17. Raxd1 Red8 18. Nf5 Ne8 19. g4 Kf8 20. h4 h5 21. gxh5 b5 22. axb5 cxb5 23. Rxd8 Rxd8 24. Bxb5 Nf6 25. Ng3 Rd2 26. b3 Rb2 {[%emt 1:42:18]} 27. Bc4 {[%emt 1:29:11]} Rc2 {[%emt 0:00:30]} 28. Re3 {[%emt 0:00:30]} Ng4 {[%emt 0:00:30]} 29. Rf3 {[%emt 0:00:30]} f6 {[%emt 0:00:30]} 30. Be6 {[%emt 0:00:30]} Nh6 {[%emt 0:00:30]} 31. Rd3 {[%emt 0:00:30]} Ke7 {[%emt 0:00:25]} 32. Bc4 {[%emt 0:06:19]} Bc6 {[%emt 0:00:32]} 33. f3 {[%emt 0:03:09]} Rb2 {[%emt 0:00:38]} 34. Nf1 {[%emt 0:02:00]} f5 {[%emt 0:00:34]} 35. Rd2 {[%emt 0:01:22]} Rb1 {[%emt 0:00:20]} 36. Rg2 {[%emt 0:00:48]} Kf8 {[%emt 0:00:13]} 37. Rg6 {[%emt 0:00:24]} Be8 {[%emt 0:00:48]} 38. Rg5 {[%emt 0:00:07]} Rc1 {[%emt 0:00:09]} 39. Kf2 {[%emt 0:02:36]} Rc2+ {[%emt 0:00:31]} 40. Ke1 {[%emt 0:00:00]} Rxc3 {[%emt 0:01:19]} 41. Nd2 {[%emt 0:01:34]} Rc1+ {[%emt 0:06:43]} 42. Kf2 {[%emt 0:06:30]} Rh1 {[%emt 0:01:30]} 43. exf5 {[%emt 0:06:39]} Rxh4 {[%emt 0:01:30]} 44. Be6 {[%emt 0:00:44]} Nf7 {[%emt 0:12:07]} 45. Rg4 {[%emt 0:06:55]} Rh2+ {[%emt 0:02:57]} 46. Ke3 {[%emt 0:02:07]} Nd6 {[%emt 0:00:22]} 47. Ne4 {[%emt 0:02:43]} Bb5 {[%emt 0:02:09]} 48. Nc3 {[%emt 0:05:50]} Bc6 {[%emt 0:01:14]} 49. Rg5 {[%emt 0:01:51]} Be8 {[%emt 0:05:33]} 50. Ne4 {[%emt 0:01:35]} Bb5 {[%emt 0:00:31]} 51. Nc3 {[%emt 0:00:36]} Be8 {[%emt 0:00:14]} 52. Nd5 {[%emt 0:00:29]} Bf7 {[%emt 0:00:51]} 53. Rg1 {[%emt 0:00:26]} Nxf5+ {[%emt 0:00:47]} 54. Bxf5 {[%emt 0:00:30]} Bxd5 {[%emt 0:00:00]} 55. Ra1 {[%emt 0:00:01]} Rxh5 {[%emt 0:00:35]} 56. Rxa5 {[%emt 0:00:46]} Bxb3 {[%emt 0:00:21]} 57. Rxe5 {[%emt 0:00:30]} Bc2 {[%emt 0:00:42]} 58. Kf4 {[%emt 0:00:16]} Bxf5 {[%emt 0:00:44]} 59. Rxf5+ {[%emt 0:00:30]} Rxf5+ {[%emt 0:00:00]} 60. Kxf5 {[%emt 0:00:00]} 1/2-1/2

[Event "Turkish Super League 2019"]
[Site "Konya"]
[Date "2019.07.23"]
[Round "7"]
[White "Yurtseven, Melih"]
[Black "Tasdogen, Dincer"]
[Result "1-0"]
[ECO "E61"]
[WhiteElo "2381"]
[BlackElo "2310"]
[Annotator "NA"]
[PlyCount "99"]
[EventDate "2019.07.17"]
[EventType "team-tourn"]
[EventCountry "TUR"]
[SourceTitle "playchess.com"]
[Source "ChessBase"]
[SourceQuality "1"]
[TimeControl "40/5400+30:1800+30"]

1. d4 d6 2. Nf3 Nf6 3. c4 Nbd7 4. Nc3 e5 5. e3 g6 6. Be2 Bg7 7. b4 O-O 8. Bb2 exd4 9. Nxd4 Re8 10. O-O Nb6 11. a3 Nfd7 12. Qc2 a5 13. Ncb5 Ne5 14. c5 dxc5 15. bxc5 Nd5 16. c6 Qe7 17. Rad1 Ra6 18. Nc3 Nxc3 19. Bxc3 Ra8 20. Qb2 bxc6 21. Nxc6 Qe6 22. Nxe5 Bxe5 23. Bxe5 Qxe5 24. Qxe5 Rxe5 25. Rd8+ Kg7 26. Rc1 Re7 27. Bf3 c6 {[%emt 1:40:59]} 28. Rxc6 {[%emt 1:39:15]} Bb7 {[%emt 0:00:38]} 29. Rxa8 {[%emt 0:00:30]} Bxa8 {[%emt 0:00:00]} 30. Rc5 {[%emt 0:00:01]} Bxf3 {[%emt 0:00:14]} 31. gxf3 {[%emt 0:00:30]} Ra7 {[%emt 0:00:30]} 32. a4 {[%emt 0:00:00]} Kf6 {[%emt 0:00:05]} 33. Kg2 {[%emt 0:00:00]} Ke6 {[%emt 0:03:40]} 34. f4 {[%emt 0:00:14]} Kd6 {[%emt 0:00:36]} 35. Rb5 {[%emt 0:00:02]} Kc6 {[%emt 0:00:10]} 36. f5 {[%emt 0:01:01]} Ra8 {[%emt 0:00:22]} 37. Kf3 {[%emt 0:00:43]} f6 {[%emt 0:00:19]} 38. h4 {[%emt 0:01:07]} Ra7 {[%emt 0:00:49]} 39. fxg6 {[%emt 0:00:30]} hxg6 {[%emt 0:00:00]} 40. Kg4 {[%emt 0:00:00]} Kd6 {[%emt 0:00:00]} 41. h5 {[%emt 0:05:37]} gxh5+ {[%emt 0:05:08]} 42. Rxh5 {[%emt 0:00:00]} Ke6 {[%emt 0:00:30]} 43. Rb5 {[%emt 0:00:00]} Ra8 {[%emt 0:01:30]} 44. Kf4 {[%emt 0:00:30]} Ra6 {[%emt 0:00:00]} 45. e4 {[%emt 0:00:30]} Ke7 {[%emt 0:00:00]} 46. Kf5 {[%emt 0:00:30]} Kf7 {[%emt 0:00:30]} 47. Rb7+ {[%emt 0:04:30]} Ke8 {[%emt 0:00:30]} 48. f3 {[%emt 0:01:30]} Kd8 {[%emt 0:00:30]} 49. Rf7 {[%emt 0:00:00]} Rc6 {[%emt 0:00:00]} 50. Ra7 {[%emt 0:03:00]} 1-0

[Event "Turkish Super League 2019"]
[Site "Konya"]
[Date "2019.07.23"]
[Round "7"]
[White "Tanriverdi, Enes"]
[Black "Akdogan, Alperen"]
[Result "1-0"]
[ECO "E17"]
[WhiteElo "2374"]
[BlackElo "2193"]
[Annotator "NA"]
[PlyCount "101"]
[EventDate "2019.07.17"]
[EventType "team-tourn"]
[EventCountry "TUR"]
[SourceTitle "playchess.com"]
[Source "ChessBase"]
[SourceQuality "1"]
[TimeControl "40/5400+30:1800+30"]

1. d4 Nf6 2. c4 e6 3. Nf3 b6 4. g3 Bb7 5. Bg2 Be7 6. O-O O-O 7. Re1 Ne4 8. Nfd2 d5 9. cxd5 exd5 10. Nxe4 dxe4 11. Nc3 f5 12. Bf4 Bd6 13. Bxd6 Qxd6 14. Rc1 a6 15. e3 Nd7 16. a3 Nf6 17. Qb3+ Kh8 18. Rc2 Rae8 19. Qb4 Qd8 20. a4 g5 21. a5 b5 22. Qc5 Qd7 23. Bh3 g4 24. Bg2 Bd5 25. Ne2 c6 26. Nf4 Rc8 27. Rec1 Rfd8 28. Qb6 Bc4 29. Qxa6 Nd5 30. Nxd5 Bxd5 31. Qb6 Rb8 32. Qc5 Ra8 33. Qa3 Qa7 34. b4 Qe7 35. Bf1 Rd7 {[%emt 1:45:42]} 36. Be2 {[%emt 1:27:00]} h5 {[%emt 0:00:30]} 37. Bd1 {[%emt 0:00:30]} h4 {[%emt 0:00:30]} 38. Rc3 {[%emt 0:00:30]} hxg3 {[%emt 0:00:30]} 39. fxg3 {[%emt 0:00:30]} Bc4 {[%emt 0:00:30]} 40. Bb3 {[%emt 0:00:30]} Bd3 {[%emt 0:00:00]} 41. Rxc6 {[%emt 0:02:30]} f4 {[%emt 0:01:48]} 42. exf4 {[%emt 0:01:30]} Rxd4 {[%emt 0:00:30]} 43. Qa1 {[%emt 0:06:30]} Rad8 {[%emt 0:03:30]} 44. a6 {[%emt 0:01:30]} e3 {[%emt 0:10:41]} 45. a7 {[%emt 0:01:30]} e2 {[%emt 0:01:04]} 46. Qxd4+ {[%emt 0:02:30]} Rxd4 {[%emt 0:00:30]} 47. a8=Q+ {[%emt 0:00:00]} Rd8 {[%emt 0:00:07]} 48. Qa1+ {[%emt 0:00:00]} Kh7 {[%emt 0:00:11]} 49. Qe5 {[%emt 0:00:30]} Qxe5 {[%emt 0:00:56]} 50. fxe5 {[%emt 0:00:30]} Rf8 {[%emt 0:00:00]} 51. Rf6 {[%emt 0:00:30]} 1-0

[Event "Turkish Super League 2019"]
[Site "Konya"]
[Date "2019.07.23"]
[Round "7"]
[White "Ozer, Omer Faruk"]
[Black "Kamer, Kayra"]
[Result "1-0"]
[ECO "E70"]
[WhiteElo "2369"]
[BlackElo "2340"]
[Annotator "NA"]
[PlyCount "119"]
[EventDate "2019.07.17"]
[EventType "team-tourn"]
[EventCountry "TUR"]
[SourceTitle "playchess.com"]
[Source "ChessBase"]
[SourceQuality "1"]
[TimeControl "40/5400+30:1800+30"]

1. d4 Nf6 2. c4 g6 3. Nc3 Bg7 4. e4 d6 5. Nge2 O-O 6. Ng3 c5 7. d5 e6 8. Be2 Na6 9. O-O Nc7 10. a4 Re8 11. Be3 exd5 12. cxd5 b6 13. Qd2 Rb8 14. Kh1 a6 15. f4 b5 16. axb5 axb5 17. e5 b4 18. Nce4 Nxe4 19. Nxe4 dxe5 20. d6 Ne6 21. Bc4 exf4 22. Bxf4 Bd7 23. Bg5 Nxg5 24. Nxg5 Be6 25. Nxf7 Qd7 26. Bxe6 Rxe6 27. Qd5 Rbe8 28. Rad1 h6 29. Qxc5 Rf8 30. Qc7 Rxf7 31. Rxf7 Qxf7 32. d7 Bf6 33. h3 {[%emt 1:45:12]} Re2 {[%emt 1:38:54]} 34. d8=Q+ {[%emt 0:00:52]} Bxd8 {[%emt 0:00:05]} 35. Rxd8+ {[%emt 0:00:00]} Re8 {[%emt 0:00:32]} 36. Rxe8+ {[%emt 0:00:00]} Qxe8 {[%emt 0:00:37]} 37. Qc4+ {[%emt 0:00:00]} Kh7 {[%emt 0:02:31]} 38. Qxb4 {[%emt 0:00:33]} Qe5 {[%emt 0:00:03]} 39. Qc3 {[%emt 0:01:01]} Qf4 {[%emt 0:00:02]} 40. Kg1 {[%emt 0:00:00]} h5 {[%emt 0:00:00]} 41. b4 {[%emt 0:04:52]} h4 {[%emt 0:04:46]} 42. b5 {[%emt 0:09:39]} Qd6 {[%emt 0:00:30]} 43. Qb2 {[%emt 0:06:23]} Qb6+ {[%emt 0:01:30]} 44. Kh1 {[%emt 0:05:37]} Qe3 {[%emt 0:02:30]} 45. Qb1 {[%emt 0:00:08]} Qb6 {[%emt 0:00:30]} 46. Qb4 {[%emt 0:00:12]} Kg8 {[%emt 0:03:30]} 47. Qc4+ {[%emt 0:02:19]} Kg7 {[%emt 0:07:30]} 48. Qc3+ {[%emt 0:00:43]} Kh6 {[%emt 0:01:41]} 49. Qe5 {[%emt 0:01:54]} Qd8 {[%emt 0:00:26]} 50. Qe3+ {[%emt 0:00:17]} Kh7 {[%emt 0:02:49]} 51. b6 {[%emt 0:01:01]} Qd1+ {[%emt 0:00:19]} 52. Qg1 {[%emt 0:00:01]} Qb3 {[%emt 0:06:57]} 53. Qc5 {[%emt 0:00:12]} g5 {[%emt 0:00:15]} 54. Qc7+ {[%emt 0:00:36]} Kh6 {[%emt 0:00:05]} 55. b7 {[%emt 0:00:43]} g4 {[%emt 0:04:54]} 56. hxg4 {[%emt 0:00:05]} h3 {[%emt 0:00:26]} 57. Qf4+ {[%emt 0:02:42]} Kg6 {[%emt 0:00:21]} 58. b8=Q {[%emt 0:00:10]} hxg2+ {[%emt 0:00:00]} 59. Kxg2 {[%emt 0:00:11]} Qb7+ {[%emt 0:00:06]} 60. Kg3 {[%emt 0:00:51]} 1-0

[Event "Turkish Super League 2019"]
[Site "Konya"]
[Date "2019.07.23"]
[Round "7"]
[White "Ozturk, Kubra"]
[Black "Szczepkowska, Karina"]
[Result "1/2-1/2"]
[ECO "E20"]
[WhiteElo "2317"]
[BlackElo "2425"]
[Annotator "NA"]
[PlyCount "129"]
[EventDate "2019.07.17"]
[EventType "team-tourn"]
[EventCountry "TUR"]
[SourceTitle "playchess.com"]
[Source "ChessBase"]
[SourceQuality "1"]
[TimeControl "40/5400+30:1800+30"]

1. d4 Nf6 2. c4 e6 3. Nc3 Bb4 4. g3 c5 5. Nf3 cxd4 6. Nxd4 Ne4 7. Qd3 Qa5 8. Nb3 Nxc3 9. Bd2 Ne4 10. Qxe4 Bxd2+ 11. Nxd2 O-O 12. Bg2 Rd8 13. Qd3 Qe5 14. Rb1 d5 15. cxd5 exd5 16. Nf3 Qf6 17. Nd4 Nc6 18. Rd1 Bg4 19. h3 Bh5 20. Qf5 Nxd4 21. Qxf6 Nc2+ 22. Kd2 gxf6 23. Kxc2 Bxe2 24. Rxd5 Rac8+ 25. Kd2 Rxd5+ 26. Bxd5 Rd8 27. Kxe2 Rxd5 28. Rc1 Rd7 29. Rc2 Kg7 30. Ke3 Kg6 31. Rc4 Kg7 32. a4 Re7+ 33. Kd3 Rd7+ 34. Kc3 Re7 35. b4 f5 36. a5 Kg6 37. Rf4 Rc7+ 38. Kd4 Rc2 39. Ke5 Re2+ 40. Kd6 Rc2 {[%emt 1:08:00]} 41. g4 {[%emt 1:37:30]} fxg4 {[%emt 0:30:30]} 42. hxg4 {[%emt 0:00:30]} f6 {[%emt 0:03:30]} 43. f3 {[%emt 0:01:30]} Rc3 {[%emt 0:03:30]} 44. Rf5 {[%emt 0:02:30]} a6 {[%emt 0:01:30]} 45. Ke6 {[%emt 0:05:30]} Re3+ {[%emt 0:04:30]} 46. Kd6 {[%emt 0:03:30]} h5 {[%emt 0:10:30]} 47. Rxh5 {[%emt 0:01:30]} Rxf3 {[%emt 0:00:00]} 48. Kc7 {[%emt 0:03:30]} Rb3 {[%emt 0:02:09]} 49. Kxb7 {[%emt 0:01:30]} Rxb4+ {[%emt 0:00:21]} 50. Kxa6 {[%emt 0:00:00]} Rxg4 {[%emt 0:00:30]} 51. Rb5 {[%emt 0:00:00]} Re4 {[%emt 0:01:17]} 52. Kb6 {[%emt 0:01:30]} Re6+ {[%emt 0:01:38]} 53. Kb7 {[%emt 0:00:30]} Re7+ {[%emt 0:00:05]} 54. Kb8 {[%emt 0:02:30]} f5 {[%emt 0:01:02]} 55. a6 {[%emt 0:00:30]} Kg5 {[%emt 0:01:14]} 56. a7 {[%emt 0:00:30]} Kg4 {[%emt 0:02:26]} 57. Rc5 {[%emt 0:03:30]} Rxa7 {[%emt 0:00:57]} 58. Kxa7 {[%emt 0:00:30]} f4 {[%emt 0:00:00]} 59. Rc1 {[%emt 0:02:30]} f3 {[%emt 0:01:01]} 60. Kb6 {[%emt 0:00:00]} f2 {[%emt 0:00:11]} 61. Kc5 {[%emt 0:00:00]} Kf3 {[%emt 0:00:16]} 62. Kd4 {[%emt 0:00:30]} Kg2 {[%emt 0:00:00]} 63. Ke3 {[%emt 0:00:00]} f1=Q {[%emt 0:00:31]} 64. Rxf1 {[%emt 0:00:00]} Kxf1 {[%emt 0:00:00]} 65. Kd4 {[%emt 0:00:30]} 1/2-1/2